bitfinex/quotes_BTCUSD_20240826
["timestamp","ask_amount","ask_price","bid_price","bid_amount"]
[1724641212430,0.00987478,64156.0,64155.0,1.10304836]
[1724641212633,0.00987478,64156.0,64155.0,1.51479236]
[1724641212838,0.00787478,64156.0,64155.0,1.31077024]
[1724641213040,0.00987478,64156.0,64155.0,1.31077024]
[1724641213459,0.00787478,64156.0,64155.0,1.31077024]
[1724641213661,0.00787478,64156.0,64155.0,1.31677024]
[1724641213927,0.08507478,64156.0,64155.0,0.74643236]
[1724641214089,0.08507478,64156.0,64155.0,0.90230436]
[1724641214314,0.08507478,64156.0,64155.0,0.59025435]
[1724641214315,0.30234478,64156.0,64155.0,0.59025435]
[1724641215322,0.61408478,64156.0,64155.0,0.59025435]
[1724641215528,0.61408478,64156.0,64155.0,0.58425435]
[1724641215840,0.30434478,64156.0,64155.0,0.58425435]
[1724641216481,0.30234478,64156.0,64155.0,0.57925435]
[1724641216893,0.30434478,64156.0,64155.0,0.57925435]
[1724641217469,0.30234478,64156.0,64155.0,0.57925435]
[1724641217686,0.14647478,64156.0,64155.0,0.57925435]
[1724641218428,0.14847478,64156.0,64155.0,0.57925435]
[1724641218706,0.30434478,64156.0,64155.0,0.57925435]
[1724641219472,0.30234478,64156.0,64155.0,0.57925435]
[1724641220021,0.61721357,64156.0,64155.0,0.57925435]
[1724641220266,0.61821357,64156.0,64155.0,0.57925435]
[1724641220470,0.92995357,64156.0,64155.0,0.57925435]
[1724641220687,0.92895357,64156.0,64155.0,0.48225435]
[1724641221047,1.24169357,64156.0,64155.0,0.48225435]
[1724641221249,1.24069357,64156.0,64155.0,0.48225435]
[1724641221449,1.24069357,64156.0,64155.0,0.47825435]
[1724641221665,1.23756478,64156.0,64155.0,0.47825435]
[1724641221891,0.92582478,64156.0,64155.0,0.47925435]
[1724641222250,0.92582478,64156.0,64155.0,0.47825435]
[1724641222657,0.92882478,64156.0,64155.0,0.47925435]
[1724641223107,0.92782478,64156.0,64155.0,0.47925435]
[1724641223504,0.93082478,64156.0,64155.0,0.48025435]
[1724641223710,0.93063718,64156.0,64155.0,0.48025435]
[1724641223885,1.24237718,64156.0,64155.0,0.48025435]
[1724641226838,0.93063718,64156.0,64155.0,0.48025435]
[1724641228145,0.92863718,64156.0,64155.0,0.47925435]
[1724641228350,0.93063718,64156.0,64155.0,0.47925435]
[1724641228929,0.92863718,64156.0,64155.0,0.47925435]
[1724641229135,0.92763718,64156.0,64155.0,0.47825435]
[1724641229766,0.92563718,64156.0,64155.0,0.47825435]
[1724641229967,0.92863718,64156.0,64155.0,0.47925435]
[1724641230168,0.92563718,64156.0,64155.0,0.47825435]
[1724641230728,0.92863718,64156.0,64155.0,0.47825435]
[1724641231228,0.93063718,64156.0,64155.0,0.47825435]
[1724641231710,0.93055924,64156.0,64155.0,0.47825435]
[1724641233171,1.24229924,64156.0,64155.0,0.47825435]
[1724641233417,1.35002112,64156.0,64155.0,0.47825435]
[1724641235709,1.8188928,64156.0,64155.0,0.47825435]
[1724641235920,1.81893913,64156.0,64155.0,0.01063435]
[1724641236784,1.81393913,64156.0,64155.0,0.01063435]
[1724641236989,1.81593913,64156.0,64155.0,0.01163435]
[1724641237231,1.81893913,64156.0,64155.0,0.01263435]
[1724641237629,1.81593913,64156.0,64155.0,0.01163435]
[1724641238027,1.70821725,64156.0,64155.0,0.01163435]
[1724641238228,1.70721725,64156.0,64155.0,0.01163435]
[1724641238433,1.70721725,64156.0,64155.0,0.01063435]
[1724641238434,1.70521725,64156.0,64155.0,0.01063435]
[1724641238815,1.71121725,64156.0,64155.0,0.01163435]
[1724641239131,1.71221725,64156.0,64155.0,0.01163435]
[1724641239339,1.72021725,64156.0,64155.0,0.01163435]
[1724641239497,1.71621725,64156.0,64155.0,0.01163435]
[1724641239942,1.73021725,64156.0,64155.0,0.01263435]
[1724641240165,1.70621725,64156.0,64155.0,0.01063435]
[1724641240363,1.70621725,64156.0,64155.0,0.01163435]
[1724641240364,1.71521725,64156.0,64155.0,0.01163435]
[1724641240608,1.26129924,64156.0,64155.0,0.01263435]
[1724641250667,0.34334924,64156.0,64155.0,0.01263435]
[1724641250873,0.49921924,64156.0,64155.0,0.01263435]
[1724641251070,0.49921924,64156.0,64155.0,0.01363435]
[1724641251677,0.03160924,64156.0,64155.0,0.31551236]
[1724641251962,0.03160924,64156.0,64155.0,0.78312836]
[1724641252192,0.03160924,64156.0,64155.0,1.61044728]
[1724641252349,0.03160924,64156.0,64155.0,1.26480943]
[1724641252521,0.02160924,64156.0,64155.0,1.26380943]
[1724641252702,0.00760924,64156.0,64155.0,1.98980984]
[1724641252909,0.01360924,64156.0,64155.0,1.87424805]
[1724641253110,0.01360924,64156.0,64155.0,1.87924805]
[1724641254202,0.00760924,64156.0,64155.0,1.87824805]
[1724641254479,0.00760924,64156.0,64155.0,1.61937361]
[1724641255141,0.00760924,64156.0,64155.0,1.54950405]
[1724641255548,0.00760924,64156.0,64155.0,1.6193598]
[1724641256431,0.00760924,64156.0,64155.0,1.27372811]
[1724641256675,0.00760924,64156.0,64155.0,1.20387236]
[1724641257504,0.00760924,64156.0,64155.0,1.25043129]
[1724641260821,0.00760924,64156.0,64155.0,1.20387236]
[1724641261236,0.00760924,64156.0,64155.0,0.89212836]
[1724641261480,0.01073803,64156.0,64155.0,0.27881236]
[1724641261680,0.16347924,64156.0,64155.0,0.27881236]
[1724641262480,0.47521924,64156.0,64155.0,0.27881236]
[1724641262629,0.47521924,64156.0,64155.0,0.27281236]
[1724641262835,0.47521924,64156.0,64155.0,0.26781236]
[1724641263037,0.16347924,64156.0,64155.0,0.26781236]
[1724641263209,0.16447924,64156.0,64155.0,0.26781236]
[1724641263415,0.16347924,64156.0,64155.0,0.26781236]
[1724641263636,0.47521924,64156.0,64155.0,0.26781236]
[1724641263818,0.78795924,64156.0,64155.0,0.11163435]
[1724641264024,1.17609924,64156.0,64155.0,0.11063435]
[1724641265007,1.17609924,64156.0,64155.0,0.01063435]
[1724641265008,1.23649924,64156.0,64155.0,0.01063435]
[1724641265508,1.23749924,64156.0,64155.0,0.01063435]
[1724641265746,1.23749924,64156.0,64155.0,0.0009086]
[1724641266586,1.23731164,64156.0,64155.0,0.0009086]
[1724641266791,0.92557164,64156.0,64155.0,0.0009086]
[1724641266990,0.47603164,64156.0,64155.0,0.0019086]
[1724641270039,0.78777164,64156.0,64155.0,0.0009086]
[1724641270245,0.47603164,64156.0,64155.0,0.0009086]
[1724641270671,1.24391164,64156.0,64155.0,0.0009086]
[1724641271917,1.24291164,64156.0,64155.0,0.0009086]
[1724641272164,1.25091164,64156.0,64155.0,0.0019086]
[1724641272367,1.25091164,64156.0,64155.0,0.0029086]
[1724641272368,1.25591164,64156.0,64155.0,0.0029086]
[1724641272515,1.24791164,64156.0,64155.0,0.0019086]
[1724641272695,1.24791164,64156.0,64155.0,0.0029086]
[1724641272696,1.25691164,64156.0,64155.0,0.0029086]
[1724641273299,1.24791164,64156.0,64155.0,0.0019086]
[1724641273707,1.24791164,64156.0,64155.0,0.0009086]
[1724641273907,1.24291164,64156.0,64155.0,0.0009086]
[1724641274298,1.25791164,64156.0,64155.0,0.0029086]
[1724641274680,1.25291164,64156.0,64155.0,0.0019086]
[1724641275106,1.25791164,64156.0,64155.0,0.0029086]
[1724641286058,1.72582965,64156.0,64155.0,0.0029086]
[1724641286267,2.36735319,64156.0,64155.0,0.0029086]
[1724641286469,2.39035319,64156.0,64155.0,0.0029086]
[1724641286673,2.23422151,64156.0,64155.0,0.0029086]
[1724641286877,2.3274821,64156.0,64155.0,0.0029086]
[1724641287085,2.3174821,64156.0,64155.0,0.0019086]
[1724641287292,2.28917767,64156.0,64155.0,0.0009086]
[1724641287493,2.29817767,64156.0,64155.0,0.0019086]
[1724641287697,2.30317767,64156.0,64155.0,0.0029086]
[1724641288040,1.96343767,64156.0,64155.0,0.0019086]
[1724641288240,1.71982965,64156.0,64155.0,0.0019086]
[1724641288579,1.56465164,64156.0,64155.0,0.0019086]
[1724641288789,1.55565164,64156.0,64155.0,0.0009086]
[1724641288990,1.55565164,64156.0,64155.0,0.0019086]
[1724641289197,1.56865164,64156.0,64155.0,0.0019086]
[1724641289425,1.56865164,64156.0,64155.0,0.0009086]
[1724641289604,1.59565164,64156.0,64155.0,0.0019086]
[1724641290002,1.58265164,64156.0,64155.0,0.0009086]
[1724641290413,1.59665164,64156.0,64155.0,0.0019086]
[1724641291497,1.75382965,64156.0,64155.0,0.0019086]
[1724641295137,1.75282965,64156.0,64155.0,0.0019086]
[1724641296322,1.59665164,64156.0,64155.0,0.0019086]
[1724641299530,1.45225164,64156.0,64155.0,0.0019086]
[1724641307432,1.14051164,64156.0,64155.0,0.0019086]
[1724641309791,1.22361164,64156.0,64155.0,0.0019086]
[1724641310012,1.28921164,64156.0,64155.0,0.0019086]
[1724641315188,1.14051164,64156.0,64155.0,0.0019086]
[1724641318605,1.12651164,64156.0,64155.0,0.0009086]
[1724641318805,1.13951164,64156.0,64155.0,0.0019086]
[1724641319009,1.11151164,64156.0,64155.0,0.0019086]
[1724641319215,1.12551164,64156.0,64155.0,0.0029086]
[1724641321689,0.81377164,64156.0,64155.0,0.0029086]
[1724641321901,0.03442164,64156.0,64155.0,0.1419086]
[1724641322106,0.19029164,64156.0,64155.0,0.1419086]
[1724641322704,0.50203164,64156.0,64155.0,0.1419086]
[1724641322914,0.48903164,64156.0,64155.0,0.1409086]
[1724641323087,0.17429164,64156.0,64155.0,0.1409086]
[1724641323290,0.17429164,64156.0,64155.0,0.1439086]
[1724641323814,0.17429164,64156.0,64155.0,0.1409086]
[1724641324557,0.00742164,64156.0,64155.0,0.1399086]
[1724641324706,0.00742164,64156.0,64155.0,0.1419086]
[1724641325250,0.00742164,64156.0,64155.0,0.1399086]
[1724641326012,0.00842164,64156.0,64155.0,0.1399086]
[1724641326232,0.00842164,64156.0,64155.0,0.29608661]
[1724641326423,0.00742164,64156.0,64155.0,0.45495861]
[1724641326761,0.00742164,64156.0,64155.0,0.45595861]
[1724641327075,0.00742164,64156.0,64155.0,0.45495861]
[1724641327276,0.00742164,64156.0,64155.0,0.76670261]
[1724641327843,0.00742164,64156.0,64155.0,0.76370261]
[1724641328022,0.00742164,64156.0,64155.0,0.76770261]
[1724641328429,0.00742164,64156.0,64155.0,0.45595861]
[1724641328571,0.00742164,64156.0,64155.0,0.45895861]
[1724641330194,0.00742164,64156.0,64155.0,0.77070261]
[1724641330578,0.00742164,64156.0,64155.0,0.45895861]
[1724641332347,0.00742164,64156.0,64155.0,0.46739165]
[1724641335801,0.00742164,64156.0,64155.0,1.09087965]
[1724641337058,0.00742164,64156.0,64155.0,1.19087965]
[1724641338245,0.00742164,64156.0,64155.0,1.50262365]
[1724641338599,0.00742164,64156.0,64155.0,1.57212348]
[1724641339623,0.00742164,64156.0,64155.0,1.88486748]
[1724641339829,0.00742164,64156.0,64155.0,2.27696]
[1724641340557,0.00742164,64156.0,64155.0,2.18396034]
[1724641341611,0.00742164,64156.0,64155.0,2.25362398]
[1724641342214,0.00742164,64156.0,64155.0,2.18396034]
[1724641342417,0.00742164,64156.0,64155.0,2.25361467]
[1724641343234,0.00742164,64156.0,64155.0,1.90802198]
[1724641343643,0.00742164,64156.0,64155.0,2.30001107]
[1724641343838,0.00742164,64156.0,64155.0,2.18395766]
[1724641344871,0.00742164,64156.0,64155.0,2.30001358]
[1724641345050,0.00742164,64156.0,64155.0,2.17995766]
[1724641345249,0.00742164,64156.0,64155.0,2.29599859]
[1724641345469,0.00842164,64156.0,64155.0,2.30099859]
[1724641345876,0.00942164,64156.0,64155.0,2.30899859]
[1724641346444,0.00942164,64156.0,64155.0,2.19295766]
[1724641347192,0.00842164,64156.0,64155.0,2.27776024]
[1724641347593,0.00942164,64156.0,64155.0,2.28676024]
[1724641349738,0.0126607,64165.0,64164.0,1.227053]
[1724641350067,0.0126607,64165.0,64164.0,1.59082239]
[1724641350875,0.0136607,64165.0,64164.0,1.59082239]
[1724641351455,0.0156607,64165.0,64164.0,1.59082239]
[1724641353904,0.0156607,64165.0,64164.0,1.59946548]
[1724641355480,0.0156607,64165.0,64164.0,1.62246548]
[1724641356283,0.0136607,64165.0,64164.0,1.62246548]
[1724641356498,0.0146607,64165.0,64164.0,1.63246548]
[1724641356701,0.0136607,64165.0,64164.0,1.63246548]
[1724641357074,0.0154867,64165.0,64164.0,1.64346548]
[1724641359359,0.0154867,64165.0,64164.0,1.64346548]
[1724641360893,0.0154867,64165.0,64164.0,1.0660731]
[1724641361102,0.1543867,64165.0,64164.0,0.43402801]
[1724641361516,0.1543867,64165.0,64164.0,0.27817801]
[1724641362145,0.1533867,64165.0,64164.0,0.42302801]
[1724641362380,0.0905867,64165.0,64164.0,0.41302801]
[1724641362587,0.0134867,64165.0,64164.0,0.41302801]
[1724641362785,0.0134867,64165.0,64164.0,0.41702801]
[1724641363458,0.0134867,64165.0,64164.0,0.41302801]
[1724641363828,0.0134867,64165.0,64164.0,0.41802801]
[1724641364034,0.0134867,64165.0,64164.0,1.04143001]
[1724641364463,0.0134867,64165.0,64164.0,1.03643001]
[1724641364815,0.0134867,64165.0,64164.0,1.04543001]
[1724641365219,0.0134867,64165.0,64164.0,1.08781611]
[1724641365495,0.0134867,64165.0,64164.0,1.04543001]
[1724641365701,0.0134867,64165.0,64164.0,1.08281611]
[1724641366053,0.0134867,64165.0,64164.0,1.08681611]
[1724641366300,0.0134867,64165.0,64164.0,1.08281611]
[1724641366720,0.0134867,64165.0,64164.0,1.08781611]
[1724641366924,0.0134867,64165.0,64164.0,1.09281611]
[1724641367326,0.0134867,64165.0,64164.0,1.04643001]
[1724641367590,0.0134867,64165.0,64164.0,1.04143001]
[1724641367743,0.0134867,64165.0,64164.0,1.04743001]
[1724641367943,0.0134867,64165.0,64164.0,1.09391749]
[1724641368253,0.0134867,64165.0,64164.0,1.40561849]
[1724641368449,0.0134867,64165.0,64164.0,1.42862565]
[1724641368603,0.0134867,64165.0,64164.0,1.38213101]
[1724641369419,0.0134867,64165.0,64164.0,1.45171016]
[1724641370296,0.0134867,64165.0,64164.0,1.7972636]
[1724641370886,0.0134867,64165.0,64164.0,1.8754636]
[1724641371090,0.0134867,64165.0,64164.0,1.9359636]
[1724641371331,0.0134867,64165.0,64164.0,1.86638445]
[1724641372312,0.0134867,64165.0,64164.0,1.98242538]
[1724641373352,0.0134867,64165.0,64164.0,1.86638445]
[1724641375267,0.0134867,64165.0,64164.0,1.85538445]
[1724641375418,0.0144867,64165.0,64164.0,1.87636553]
[1724641375629,0.0154867,64165.0,64164.0,1.87636553]
[1724641380405,0.0154867,64165.0,64164.0,2.01603953]
[1724641381346,0.0154867,64165.0,64164.0,2.01603892]
[1724641382337,0.0154867,64165.0,64164.0,1.87636182]
[1724641387588,0.0154867,64165.0,64164.0,1.73766182]
[1724641387851,0.0154867,64165.0,64164.0,1.8452532]
[1724641388512,0.0154867,64165.0,64164.0,1.84525641]
[1724641390541,0.0154867,64165.0,64164.0,1.82225641]
[1724641391102,0.0941867,64165.0,64164.0,1.96203791]
[1724641392327,0.0941867,64165.0,64164.0,1.82225641]
[1724641392615,0.1572867,64165.0,64164.0,1.40296403]
[1724641392728,0.1572867,64165.0,64164.0,1.51055541]
[1724641393496,0.0941867,64165.0,64164.0,1.51058869]
[1724641394859,0.0541867,64165.0,64164.0,1.51058869]
[1724641395957,0.0631,64167.0,64164.0,1.525173]
[1724641396280,0.0631,64167.0,64166.0,0.89573668]
[1724641396488,0.0631,64167.0,64166.0,1.49848199]
[1724641397640,0.0641,64167.0,64166.0,1.50648199]
[1724641397856,0.1411,64167.0,64166.0,1.50648199]
[1724641398097,0.1411,64167.0,64166.0,1.51448199]
[1724641398294,0.001,64167.0,64166.0,1.51448199]
[1724641398644,0.001,64167.0,64166.0,1.96827299]
[1724641398860,0.001,64167.0,64166.0,2.02917304]
[1724641399083,0.001,64167.0,64166.0,2.13676442]
[1724641399322,0.001,64167.0,64166.0,1.9969396]
[1724641399921,0.001,64167.0,64166.0,1.99693496]
[1724641400132,0.001,64167.0,64166.0,1.98893496]
[1724641400333,0.001,64167.0,64166.0,2.13669144]
[1724641400539,0.00825,64172.0,64171.0,0.779167]
[1724641400676,0.00825,64172.0,64171.0,1.48950369]
[1724641400878,0.00825,64172.0,64171.0,1.50408406]
[1724641401308,0.00825,64172.0,64171.0,1.50408408]
[1724641401873,0.00825,64172.0,64171.0,1.96627069]
[1724641402057,0.00825,64172.0,64171.0,2.13102726]
[1724641403784,0.00825,64172.0,64171.0,1.99127069]
[1724641404774,0.00825,64172.0,64171.0,1.99960967]
[1724641406795,0.00825,64172.0,64171.0,2.31127667]
[1724641407630,0.00825,64172.0,64171.0,2.77877667]
[1724641408140,0.00825,64172.0,64171.0,2.77870085]
[1724641411787,0.00723699,64172.0,64171.0,2.77870085]
[1724641412811,0.00389384,64173.0,64172.0,1.090817]
[1724641413159,0.00389384,64173.0,64172.0,2.322644]
[1724641413334,0.00389384,64173.0,64172.0,2.3226444]
[1724641414176,0.00389384,64173.0,64172.0,2.3456444]
[1724641415258,0.00389384,64173.0,64172.0,2.20597684]
[1724641417992,0.00389384,64173.0,64172.0,2.20597927]
[1724641418412,0.00389384,64173.0,64172.0,2.31357065]
[1724641419522,0.00370627,64173.0,64172.0,2.31357065]
[1724641421951,0.00370627,64173.0,64172.0,2.31457065]
[1724641422208,0.00370627,64173.0,64172.0,2.39347065]
[1724641423123,0.00370627,64173.0,64172.0,2.31457065]
[1724641424885,0.00370627,64173.0,64172.0,2.20697927]
[1724641425061,0.14680627,64173.0,64172.0,2.43093553]
[1724641425414,0.14680627,64173.0,64172.0,2.31457065]
[1724641426290,0.14680627,64173.0,64172.0,2.43093553]
[1724641426908,0.14680627,64173.0,64172.0,2.31457065]
[1724641427714,0.14680627,64173.0,64172.0,1.96907639]
[1724641427914,0.00370627,64173.0,64172.0,2.31458224]
[1724641429936,0.00370627,64173.0,64172.0,2.32520324]
[1724641432867,0.00370627,64173.0,64172.0,2.32518542]
[1724641436426,0.00370627,64173.0,64172.0,2.54427405]
[1724641437713,0.00370627,64173.0,64172.0,2.54430155]
[1724641438186,0.00370627,64173.0,64172.0,2.40468356]
[1724641441303,0.14640627,64173.0,64172.0,2.21759218]
[1724641441599,0.14640627,64173.0,64172.0,2.32518356]
[1724641441836,0.14640627,64173.0,64172.0,1.10468378]
[1724641442041,0.14640627,64173.0,64172.0,0.70577596]
[1724641442242,0.14640627,64173.0,64172.0,0.81502861]
[1724641442451,0.61702006,64173.0,64172.0,0.54858385]
[1724641442653,0.92554827,64173.0,64172.0,0.5020196]
[1724641442856,0.61389127,64173.0,64172.0,0.5020196]
[1724641443064,0.14640627,64173.0,64172.0,0.76678899]
[1724641443250,0.14640627,64173.0,64172.0,0.75478899]
[1724641443595,0.14640627,64173.0,64172.0,0.64719761]
[1724641443996,0.14640627,64173.0,64172.0,0.63619761]
[1724641444238,0.30223427,64173.0,64172.0,0.63619761]
[1724641444462,0.30323427,64173.0,64172.0,0.63619761]
[1724641444639,0.30223427,64173.0,64172.0,0.63619761]
[1724641444974,0.30423427,64173.0,64172.0,0.63619761]
[1724641445192,0.30423427,64173.0,64172.0,0.64619761]
[1724641445394,0.14840627,64173.0,64172.0,0.64619761]
[1724641445812,0.14840627,64173.0,64172.0,0.63619761]
[1724641446229,0.30423427,64173.0,64172.0,0.4790196]
[1724641446460,1.23920527,64173.0,64172.0,0.4790196]
[1724641447310,1.55186227,64173.0,64172.0,0.4124196]
[1724641447526,1.55186227,64173.0,64172.0,0.3458196]
[1724641447527,1.70804028,64173.0,64172.0,0.3458196]
[1724641447744,1.70804028,64173.0,64172.0,0.0115296]
[1724641447953,1.70704028,64173.0,64172.0,0.0009086]
[1724641448156,1.70504028,64173.0,64172.0,0.0009086]
[1724641448633,1.70704028,64173.0,64172.0,0.0019086]
[1724641448857,1.70604028,64173.0,64172.0,0.0019086]
[1724641449077,1.70704028,64173.0,64172.0,0.0019086]
[1724641449200,1.70704028,64173.0,64172.0,0.0029086]
[1724641449201,1.70904028,64173.0,64172.0,0.0029086]
[1724641449399,1.70804028,64173.0,64172.0,0.0019086]
[1724641449612,1.70904028,64173.0,64172.0,0.0029086]
[1724641450000,1.70804028,64173.0,64172.0,0.0019086]
[1724641450409,1.70904028,64173.0,64172.0,0.0029086]
[1724641450810,1.70704028,64173.0,64172.0,0.0019086]
[1724641451235,1.70704028,64173.0,64172.0,0.0029086]
[1724641451236,1.71304028,64173.0,64172.0,0.0029086]
[1724641451409,1.55586227,64173.0,64172.0,0.0029086]
[1724641451623,1.54986227,64173.0,64172.0,0.0019086]
[1724641451827,1.55586227,64173.0,64172.0,0.0029086]
[1724641453519,1.24420527,64173.0,64172.0,0.0029086]
[1724641454945,1.55586227,64173.0,64172.0,0.0029086]
[1724641457176,1.71304028,64173.0,64172.0,0.0029086]
[1724641457536,2.0771781,64173.0,64172.0,0.0029086]
[1724641458320,2.04769728,64173.0,64172.0,0.0029086]
[1724641458544,2.02469728,64173.0,64172.0,0.0029086]
[1724641459957,2.02369728,64173.0,64172.0,0.0029086]
[1724641460381,2.02469728,64173.0,64172.0,0.0029086]
[1724641461409,2.02369728,64173.0,64172.0,0.0029086]
[1724641461540,2.02469728,64173.0,64172.0,0.0029086]
[1724641464491,1.71304028,64173.0,64172.0,0.0029086]
[1724641466188,1.71304028,64173.0,64156.0,0.0009086]
[1724641466189,0.155867,64157.0,64156.0,0.0016322]
[1724641466391,0.46758,64160.0,64159.0,0.0625]
[1724641466588,0.46758,64160.0,64159.0,0.06972625]
[1724641466792,0.46758,64160.0,64159.0,0.0625]
[1724641467197,0.311708,64163.0,64159.0,0.06972625]
[1724641467468,0.311693,64166.0,64161.0,0.001]
[1724641467902,0.311702,64164.0,64162.0,0.00721569]
[1724641468158,0.467559,64163.0,64162.0,0.00721569]
[1724641468660,0.467559,64163.0,64159.0,0.0615]
[1724641468661,0.46758,64160.0,64159.0,0.0615]
[1724641469008,0.46758,64160.0,64159.0,0.0625]
[1724641469666,0.54808,64160.0,64159.0,0.0625]
[1724641470369,0.55108,64160.0,64159.0,0.0625]
[1724641470519,0.55108,64160.0,64159.0,0.06972625]
[1724641470920,0.8628,64160.0,64159.0,0.06972625]
[1724641471151,0.8678,64160.0,64159.0,0.06972625]
[1724641471572,0.47558,64160.0,64159.0,0.06972625]
[1724641471772,0.47480085,64160.0,64159.0,0.06972625]
[1724641472180,0.16308085,64160.0,64159.0,0.17732643]
[1724641472546,0.008,64160.0,64159.0,0.41150444]
[1724641475382,0.00781245,64160.0,64159.0,0.41150444]
[1724641476524,0.00781245,64160.0,64159.0,0.41241304]
[1724641477327,0.00281245,64160.0,64159.0,0.56827504]
[1724641477749,0.00281245,64160.0,64159.0,0.57127504]
[1724641477977,0.155853,64163.0,64160.0,0.0611]
[1724641478184,0.155853,64163.0,64162.0,0.17210018]
[1724641478633,0.311682,64168.0,64167.0,0.001]
[1724641478895,0.467522,64168.0,64167.0,0.001]
[1724641479097,0.467522,64168.0,64167.0,0.0081738]
[1724641479706,0.467522,64168.0,64167.0,0.0726738]
[1724641479905,0.469522,64168.0,64167.0,0.0726738]
[1724641480545,0.781204,64168.0,64167.0,0.0071738]
[1724641480700,1.175986,64168.0,64167.0,0.0071738]
[1724641480960,1.175986,64168.0,64166.0,0.001]
[1724641480961,0.467529,64167.0,64166.0,0.001]
[1724641481075,0.396782,64168.0,64167.0,0.001]
[1724641481076,0.002,64168.0,64167.0,0.001]
[1724641481278,0.007,64168.0,64167.0,0.26477819]
[1724641481480,0.007,64168.0,64167.0,0.27195199]
[1724641481684,0.16084,64168.0,64167.0,0.27195199]
[1724641482312,0.472521,64168.0,64167.0,0.27195199]
[1724641482579,0.472521,64168.0,64167.0,0.16435181]
[1724641482910,0.867302,64168.0,64167.0,0.0071738]
[1724641483106,0.869302,64168.0,64167.0,0.0071738]
[1724641483369,0.467529,64167.0,64166.0,0.0655]
[1724641483728,0.467529,64167.0,64166.0,0.07267731]
[1724641484069,0.779215,64167.0,64166.0,0.07267731]
[1724641484293,0.467529,64167.0,64166.0,0.07267731]
[1724641484415,0.155843,64167.0,64166.0,0.23244397]
[1724641484620,0.002,64168.0,64166.0,0.34004415]
[1724641484883,0.005,64167.0,64166.0,0.34004415]
[1724641485303,0.007,64167.0,64166.0,0.34004415]
[1724641486295,0.162843,64167.0,64166.0,0.34004415]
[1724641487990,0.162843,64167.0,64166.0,0.23244397]
[1724641488299,0.162843,64167.0,64166.0,0.01076596]
[1724641488300,0.474529,64167.0,64166.0,0.01076596]
[1724641488499,0.474529,64167.0,64166.0,0.01176596]
[1724641488500,0.866315,64167.0,64166.0,0.01176596]
[1724641488633,0.866315,64167.0,64166.0,0.001]
[1724641488833,0.311691,64166.0,64165.0,0.001]
[1724641489035,0.47066479,64166.0,64165.0,0.001]
[1724641489842,0.47266479,64166.0,64165.0,0.001]
[1724641490678,0.78435579,64166.0,64165.0,0.001]
[1724641490930,0.78435579,64166.0,64159.0,0.0009086]
[1724641490931,0.31172,64160.0,64159.0,0.0009086]
[1724641491111,1.17072,64160.0,64159.0,0.0009086]
[1724641491261,1.17072,64160.0,64159.0,0.00807449]
[1724641491505,1.17072,64160.0,64159.0,0.0009086]
[1724641491954,1.48244,64160.0,64159.0,0.0009086]
[1724641492171,1.48244,64160.0,64159.0,0.0049086]
[1724641492827,1.48244,64160.0,64159.0,0.0009086]
[1724641493031,1.48944,64160.0,64159.0,0.0019086]
[1724641500887,1.17772,64160.0,64159.0,0.0019086]
[1724641502655,0.7863,64160.0,64159.0,0.0019086]
[1724641502849,0.47458,64160.0,64159.0,0.0019086]
[1724641502992,0.7863,64160.0,64159.0,0.0019086]
[1724641506540,0.8645,64160.0,64159.0,0.0019086]
[1724641507536,1.17622,64160.0,64159.0,0.0019086]
[1724641514480,1.177046,64160.0,64159.0,0.0019086]
[1724641518126,1.488766,64160.0,64159.0,0.0019086]
[1724641518354,1.177046,64160.0,64159.0,0.0019086]
[1724641518626,1.488766,64160.0,64159.0,0.0019086]
[1724641518827,1.177046,64160.0,64159.0,0.0019086]
[1724641519045,1.170046,64160.0,64159.0,0.0009086]
[1724641519331,1.180046,64160.0,64159.0,0.0019086]
[1724641519505,1.170046,64160.0,64159.0,0.0009086]
[1724641519855,1.481766,64160.0,64159.0,0.0019086]
[1724641520057,1.491766,64160.0,64159.0,0.0019086]
[1724641520231,1.180046,64160.0,64159.0,0.0019086]
[1724641521056,1.189046,64160.0,64159.0,0.0029086]
[1724641521486,1.180046,64160.0,64159.0,0.0019086]
[1724641521801,1.192046,64160.0,64159.0,0.0029086]
[1724641531709,1.19016007,64160.0,64159.0,0.0029086]
[1724641538263,0.80024007,64160.0,64159.0,0.0029086]
[1724641538472,0.80024007,64160.0,64159.0,0.0693086]
[1724641542737,1.11196007,64160.0,64159.0,0.0693086]
[1724641543325,0.80024007,64160.0,64159.0,0.0693086]
[1724641547057,0.48852007,64160.0,64159.0,0.1464086]
[1724641547257,0.48852007,64160.0,64159.0,0.15081627]
[1724641548229,0.47652007,64160.0,64159.0,0.14981627]
[1724641548654,0.47252007,64160.0,64159.0,0.14881627]
[1724641548861,0.78424007,64160.0,64159.0,0.1444086]
[1724641549073,0.79124007,64160.0,64159.0,0.1454086]
[1724641549264,0.79124007,64160.0,64159.0,0.0683086]
[1724641550270,0.86774007,64160.0,64159.0,0.0683086]
[1724641550422,0.79124007,64160.0,64159.0,0.0683086]
[1724641552131,0.47952007,64160.0,64159.0,0.0683086]
[1724641552301,0.47952007,64160.0,64159.0,0.1481086]
[1724641552504,0.47952007,64160.0,64159.0,0.15251545]
[1724641556347,0.47952007,64160.0,64159.0,0.30937745]
[1724641556348,0.013826,64160.0,64159.0,0.30937745]
[1724641556599,0.013826,64160.0,64159.0,0.87728046]
[1724641560446,0.007826,64160.0,64159.0,0.87728046]
[1724641560747,0.007826,64160.0,64159.0,0.87928046]
[1724641561183,0.007826,64160.0,64159.0,0.87728046]
[1724641561598,0.000826,64160.0,64159.0,0.40869346]
[1724641561804,0.780126,64160.0,64159.0,0.17571545]
[1724641561996,0.780126,64160.0,64159.0,0.07971545]
[1724641562339,1.167146,64160.0,64159.0,0.00931545]
[1724641562534,1.167146,64160.0,64159.0,0.01331545]
[1724641562811,1.167146,64160.0,64159.0,0.0049086]
[1724641563210,1.170146,64160.0,64159.0,0.0049086]
[1724641563683,1.170146,64160.0,64159.0,0.0009086]
[1724641563897,1.169146,64160.0,64159.0,0.0009086]
[1724641564303,1.167146,64160.0,64159.0,0.0009086]
[1724641565096,1.169146,64160.0,64159.0,0.0009086]
[1724641565299,1.172146,64160.0,64159.0,0.0009086]
[1724641571759,1.096846,64160.0,64159.0,0.0666086]
[1724641573315,1.096846,64160.0,64159.0,0.0009086]
[1724641573555,1.175746,64160.0,64159.0,0.0009086]
[1724641586482,1.487466,64160.0,64159.0,0.0009086]
[1724641586828,1.58231034,64160.0,64159.0,0.0009086]
[1724641587004,1.535566,64160.0,64159.0,0.0009086]
[1724641587327,1.533566,64160.0,64159.0,0.0009086]
[1724641587466,1.541566,64160.0,64159.0,0.0019086]
[1724641588721,1.5853055,64160.0,64159.0,0.0019086]
[1724641588930,1.5973055,64160.0,64159.0,0.0029086]
[1724641589111,1.550566,64160.0,64159.0,0.0029086]
[1724641590357,1.59729849,64160.0,64159.0,0.0029086]
[1724641590787,1.550566,64160.0,64159.0,0.0029086]